Cogmind - Beta 14 @@@ ROGUE MODE // 2024.08.13 @ 01:15:43 Player: Khanable Result: Destroyed by D-53 Grenadier with Mini Grenade Launcher Performance ------------- Evolutions (1) 500 Regions Visited (4) 800 Robots Destroyed (82) 410 Value Destroyed (1690) 1690 Prototype IDs (7) 140 Alien Tech Used (0) 0 Bonus (165) 165 TOTAL SCORE: 3705 Bonus ------- High Alert Combat Kills 165 Cogmind --------- Core Integrity 0/400 Matter 282/300 Energy 234/240 System Corruption 11% Temperature Cool (4) Movement Rolling (95) Ox1 Location -9/Mines Parts ------- > --- POWER (1) -------- Nuclear Core > --- PROPULSION (3) --- Wheel Wheel > --- UTILITY (3) ------ Large Storage Unit > --- WEAPON (2) ------- Improved Assault Rifle > --- INVENTORY (15) --- Nuclear Core Wheel High-capacity Matter Pod (200) Signal Interpreter Improved EM Shotgun Improved Medium Laser Improved Medium Laser Improved Assault Rifle Improved Assault Rifle Rocket Launcher Katana Peak State ------------ > --- POWER ------------ Light Nuclear Core > --- PROPULSION ------- Light Treads Wheel Compact Wheel > --- UTILITY ---------- Improved Heat Sink Large Storage Unit Structural Scanner > --- WEAPON ----------- Improved Medium Laser Improved Assault Rifle > --- INVENTORY -------- Ion Engine Ion Engine Large Battery High-capacity Matter Pod Signal Interpreter EM Shotgun Particle Gun Improved Medium Laser Improved Medium Laser Heavy Assault Rifle Light Cannon Grenade Launcher Rocket Launcher Datajack [Rating: 19] Favorites ----------- Power Light Ion Engine Engine Light Ion Engine Power Core Light Nuclear Core Propulsion Wheel Treads Light Treads Wheel Wheel Utility Large Storage Unit Device Structural Scanner Storage Large Storage Unit Protection Light Armor Plating Weapon Improved Assault Rifle Energy Gun Particle Gun Energy Cannon Particle Cannon Ballistic Gun Improved Assault Rifle Ballistic Cannon Light Cannon Slashing Weapon Katana Build | -11 -10 -10 -9 -9 ------- Run | Yrd Mat Min Mat Min Slots Evolved 2 | . . . 2 . Power . | . . . . . Propulsion 1 | . . . 1 . Utility 1 | . . . 1 . Weapon . | . . . . . Parts Attached 65 | 6 9 . 46 4 Power 7 | 1 1 . 4 1 Engine 4 | 1 1 . 2 . Core 3 | . . . 2 1 Reactor . | . . . . . Propulsion 26 | 2 1 . 20 3 Treads 4 | . . . 4 . Leg . | . . . . . Wheel 22 | 2 1 . 16 3 Hover . | . . . . . Flight . | . . . . . Utility 15 | 1 4 . 10 . Device 3 | . 1 . 2 . Storage 5 | 1 3 . 1 . Processor . | . . . . . Hackware . | . . . . . Protection 7 | . . . 7 . Artifact . | . . . . . Weapon 17 | 2 3 . 12 . Energy Gun 6 | 1 2 . 3 . Energy Cannon 1 | . . . 1 . Ballistic Gun 8 | 1 1 . 6 . Ballistic Cannon 1 | . . . 1 . Launcher . | . . . . . Special Weapon . | . . . . . Impact Weapon . | . . . . . Slashing Weapon 1 | . . . 1 . Piercing Weapon . | . . . . . Special Melee Weapon . | . . . . . Unidentified Prototypes 2 | . . . 2 . Parts Lost 30 | . 1 . 21 8 Power 4 | . . . 3 1 Propulsion 12 | . . . 8 4 Utility 8 | . . . 6 2 Weapon 6 | . 1 . 4 1 Highest Loss Streak 8 | . 1 . 8 8 To Critical Strikes 1 | . . . 1 . Average Slot Usage (%) 94 | . 92 100 95 88 Engine 6 | . 14 14 3 . Core 4 | . . . 7 11 Treads 1 | . . . 2 . Wheel 28 | . 28 28 29 27 Device 5 | . 7 14 3 . Storage 12 | . 14 14 11 11 Protection 10 | . . . 15 16 Energy Gun 11 | . 18 14 8 11 Energy Cannon 1 | . . . 1 . Ballistic Gun 10 | . 9 14 10 11 Peak Build Rating 19 | 6 10 9 19 19 Average Rating 13 | 4 8 9 16 17 On Entrance 8 | . 6 9 9 19 Naked Turns . | . . . . . Heaviest Build 47 | 11 47 30 42 37 Greatest Support 60 | 20 20 20 60 26 Greatest Overweight (x) 3 | . 2 1 3 3 Average Overweight (x) . | . . 1 . 1 Largest Inventory Capacity 20 | 8 20 15 15 15 Average Capacity 14 | 7 13 15 15 15 Most Carried 15 | 3 15 15 15 15 Average Carried 13 | 1 10 14 14 14 Final Capacity 15 | 8 15 15 15 15 Final Carried 15 | 2 14 15 15 11 Class Distribution -------------------- 59% | Mutant 40% | Scavenger-Mutant Dominant Class ---------------- Mutant | -10/Materials Scavenger-Mutant | -10/Mines Scavenger-Mutant | -9/Materials Mutant | -9/Mines Resources | -11 -10 -10 -9 -9 ----------- Run | Yrd Mat Min Mat Min Matter Collected 1543 | 256 330 18 908 31 Remotely . | . . . . . Salvage Created 2871 | 20 486 . 2311 54 Parts 193 | 3 31 . 152 7 Haulers Intercepted 7 | . 2 . 5 . Recyclers Shooed 4 | . . . 4 . Parts Field Recycled . | . . . . . Retrieved Matter . | . . . . . Parts Self-Destructed . | . . . . . Prevented . | . . . . . Kills | -11 -10 -10 -9 -9 ------- Run | Yrd Mat Min Mat Min Combat Hostiles Destroyed 43 | . 4 . 38 1 Guns 34 | . 4 . 29 1 Cannons 8 | . . . 8 . AOE 1 | . . . 1 . Classes Destroyed 12 | 1 7 . 4 . Worker 12 | . 3 . 9 . Builder 2 | . 1 . 1 . Tunneler 5 | 1 . . 3 1 Hauler 7 | . 2 . 5 . Recycler 4 | . 1 . 3 . Operator 2 | . 2 . . . Watcher 7 | . 2 . 5 . Swarmer 8 | . . . 8 . Grunt 26 | . 4 . 21 1 Brawler 1 | . . . 1 . Duelist 1 | . . . 1 . Sentry 7 | . . . 7 . Best Kill Streak 8 | 1 4 . 8 2 Combat Bots Only 7 | . 1 . 7 1 Max Kills in Single Turn 2 | 1 1 . 2 1 Gunslinging 1 | . . . 1 . Exploded 1 | . . . 1 . Melee . | . . . . . Uniques/NPCs Destroyed . | . . . . . Combat | -11 -10 -10 -9 -9 -------- Run | Yrd Mat Min Mat Min Hostile Shots Fired 264 | . 29 . 218 17 Missed 58 | . 7 . 48 3 Damage Taken 3083 | . 302 . 2139 642 Core 477 | . 77 . 297 103 Absorbed by Shields . | . . . . . Redirected to Shielding 109 | . . . 57 52 Core Remaining (%) 84 | 100 . 69 . . Volleys Fired 220 | 12 42 . 160 6 Largest 2 | 2 2 . 2 2 Hottest 110 | 70 110 . 91 79 Shots Fired 414 | 22 75 . 305 12 Gun 347 | 22 75 . 238 12 Cannon 67 | . . . 67 . Launcher . | . . . . . Special . | . . . . . Kinetic 198 | 12 25 . 155 6 Thermal 170 | 10 39 . 115 6 Explosive . | . . . . . Electromagnetic 46 | . 11 . 35 . Robot Hit Streak 23 | 5 6 . 23 3 Robot Miss Streak 6 | 3 4 . 5 6 Penetration Max . | . . . . . Secondary Targets 6 | . . . 5 1 Max Gunslinging Chain 1 | . . . 1 1 Shots Hit Robots 241 | 12 46 . 178 5 Core Hits 110 | 3 23 . 80 4 Critical Kills . | . . . . . Critical Parts Destroyed 1 | . . . 1 . Critical Strikes 7 | . 1 . 6 . Burn 6 | . 1 . 5 . Destroy 1 | . . . 1 . Melee Attacks 2 | . . . 2 . Impact . | . . . . . Slashing 2 | . . . 2 . Piercing . | . . . . . Sneak Attacks 1 | . . . 1 . Combat Hostiles . | . . . . . Follow-up Attacks . | . . . . . Damage Inflicted 4109 | 127 652 . 3256 74 Guns 3012 | 127 573 . 2238 74 Cannons 732 | . . . 732 . Explosions 294 | . 79 . 215 . Melee 63 | . . . 63 . Ramming 8 | . . . 8 . Kinetic 1467 | 53 110 . 1265 39 Thermal 2001 | 74 408 . 1484 35 Explosive . | . . . . . Electromagnetic 570 | . 134 . 436 . Impact . | . . . . . Slashing 63 | . . . 63 . Piercing . | . . . . . Highest Corruption 11 | . 2 2 7 11 Average Corruption 4 | . 2 2 5 7 Corruption Purged . | . . . . . Corruption Blocked . | . . . . . Effects 36 | . 7 2 25 2 Message Errors 4 | . 2 . 2 . Matter Fused 14 | . 1 1 11 1 Heat Flow Errors 7 | . 2 . 4 1 Energy Discharges 6 | . 2 1 3 . Data Loss (minor) 2 | . . . 2 . Data Loss (major) 1 | . . . 1 . Misfires 2 | . . . 2 . Overload Shots . | . . . . . Overflow Damage 67 | . . . 67 . Projectiles . | . . . . . Explosions 34 | . . . 34 . Melee 33 | . . . 33 . Knockbacks 1 | . . . 1 . Impact . | . . . . . Kinetic 1 | . . . 1 . Secondary . | . . . . . Self-Inflicted Damage 185 | . 34 . 151 . Shots 6 | . 1 . 5 . Rammed 1 | . . . 1 . Targets Rammed 1 | . . . 1 . Kicked . | . . . . . Crushed . | . . . . . Highest Temperature 439 | 140 439 . 357 220 Average Temperature 102 | 74 120 . 100 60 Received Heat Transfer 930 | . 153 . 753 24 Effects 11 | . 6 . 5 . Shutdowns 1 | . 1 . . . Energy Bleed 1 | . 1 . . . Interference 5 | . . . 5 . Damage (major) 4 | . 4 . . . Siege Activations . | . . . . . Robots Corrupted . | . . . . . Combat Hostiles . | . . . . . Parts Fried . | . . . . . Impact Corruptions . | . . . . . Robots Melted . | . . . . . Combat Hostiles . | . . . . . Parts Melted 11 | 1 1 . 9 . Heat Transferred 4531 | 222 938 . 3297 74 Parts Sabotaged . | . . . . . Parts Stolen . | . . . . . Parts Stripped . | . . . . . Power Chain Reactions 5 | . 1 . 4 . Alert | -11 -10 -10 -9 -9 ------- Run | Yrd Mat Min Mat Min Peak Influence 688 | 5 108 . 688 293 Initial 268 | . 3 . . 268 Average 290 | 1 46 . 437 268 Maximum Alert Level 2 | . . . 2 1 Low Security (%) 42 | 100 100 100 9 . Level 1 20 | . . . 29 100 Level 2 37 | . . . 60 . Level 3 . | . . . . . Level 4 . | . . . . . Level 5 . | . . . . . High Security . | . . . . . Max Security . | . . . . . Squads Dispatched 9 | . 4 . 5 . Investigation 2 | . 1 . 1 . Extermination . | . . . . . Reinforcement 7 | . 3 . 4 . Assault . | . . . . . Garrison . | . . . . . Intercept . | . . . . . Searches Triggered . | . . . . . Construction Impeded 2 | . . . 2 . Haulers Reinforced . | . . . . . Active Scanning Responses . | . . . . . Cargo Convoy Interrupts . | . . . . . Stealth | -11 -10 -10 -9 -9 --------- Run | Yrd Mat Min Mat Min Distress Signals 4 | . 1 . 3 . Communications Jammed . | . . . . . Distress Signals . | . . . . . Times Spotted 73 | . 7 . 57 9 Peak Tracking Total 11 | . 2 . 11 8 Tactical Retreats 4 | . . . 4 . Traps | -11 -10 -10 -9 -9 ------- Run | Yrd Mat Min Mat Min Traps Triggered 3 | . 1 . 2 . Indirectly . | . . . . . Trap Hack Attempts . | . . . . . Triggered . | . . . . . Disarmed 5 | . 5 . . . Reprogrammed . | . . . . . Reused . | . . . . . Traps Extracted . | . . . . . Installed . | . . . . . Triggered . | . . . . . Machines | -11 -10 -10 -9 -9 ---------- Run | Yrd Mat Min Mat Min Machines Disabled 5 | . . . 5 . Max in Single Turn 1 | . . . 1 . Machines Repaired . | . . . . . Machines Dismantled . | . . . . . Machines Sabotaged . | . . . . . Overloaded Fab Kills . | . . . . . Hacking | -11 -10 -10 -9 -9 --------- Run | Yrd Mat Min Mat Min Machines Accessed 13 | . 5 . 8 . Terminals 10 | . 4 . 6 . Fabricators . | . . . . . Repair Stations . | . . . . . Recycling Units 3 | . 1 . 2 . Scanalyzers . | . . . . . Garrison Access . | . . . . . Total Hacks 38 | . 20 . 18 . Successful 15 | . 6 . 9 . Failed 23 | . 14 . 9 . Catastrophic 4 | . 2 . 2 . Database Lockouts . | . . . . . Manual 7 | . 6 . 1 . Terminals 33 | . 19 . 14 . Fabricators . | . . . . . Repair Stations . | . . . . . Recycling Units 5 | . 1 . 4 . Scanalyzers . | . . . . . Garrison Access . | . . . . . Terminal Hacks 12 | . 5 . 7 . Prototype ID Bank 3 | . 1 . 2 . Locate Traps 1 | . 1 . . . Disarm Traps 1 | . 1 . . . Transport Status 1 | . 1 . . . Hauler Manifests 1 | . . . 1 . Registered Components 1 | . . . 1 . Zone Layout 4 | . 1 . 3 . Fabricator Hacks . | . . . . . Repair Station Hacks . | . . . . . Recycling Unit Hacks 3 | . 1 . 2 . Report Inventory 3 | . 1 . 2 . Scanalyzer . | . . . . . Garrison Access Hacks . | . . . . . Unauthorized Hacks . | . . . . . Terminals . | . . . . . Fabricators . | . . . . . Repair Stations . | . . . . . Recycling Units . | . . . . . Scanalyzers . | . . . . . Garrison Access . | . . . . . Data Cores Recovered . | . . . . . Used . | . . . . . Hacking Detections 9 | . 4 . 5 . Full Trace Events 1 | . . . 1 . Feedback Events . | . . . . . Feedback Blocked . | . . . . . Robot Schematics Acquired . | . . . . . Robots Built . | . . . . . Authchips . | . . . . . Time . | . . . . . Total Robot Build Rating . | . . . . . Part Schematics Acquired . | . . . . . Parts Built . | . . . . . Authchips . | . . . . . Time . | . . . . . Total Part Build Rating . | . . . . . Parts Repaired . | . . . . . Time . | . . . . . Parts Recycled . | . . . . . Recycled Matter . | . . . . . Retrieved Matter . | . . . . . Retrieved Components . | . . . . . Parts Scanalyzed . | . . . . . Part Schematics Acquired . | . . . . . Parts Damaged . | . . . . . Bothacking | -11 -10 -10 -9 -9 ------------ Run | Yrd Mat Min Mat Min Used RIF Installer . | . . . . . Robots Hacked . | . . . . . Non-combat . | . . . . . Combat . | . . . . . Robot Hacks Applied . | . . . . . Relay Couplers Released . | . . . . . Fabnet Peak Effective % . | . . . . . Robots Rewired . | . . . . . Allies Hacked . | . . . . . Hacks Repelled . | . . . . . Allies | -11 -10 -10 -9 -9 -------- Run | Yrd Mat Min Mat Min Total Allies . | . . . . . Largest Group . | . . . . . Highest-Rated Group . | . . . . . Highest-Rated Ally . | . . . . . Total Orders . | . . . . . Ally Attacks . | . . . . . Total Damage . | . . . . . Kills . | . . . . . Allies Corrupted . | . . . . . Allies Melted . | . . . . . Intel | -11 -10 -10 -9 -9 ------- Run | Yrd Mat Min Mat Min Robot Analysis Total . | . . . . . Derelict Logs Recovered 1 | . . 1 . . Drone Launches . | . . . . . Drone Recoveries . | . . . . . Exploration | -11 -10 -10 -9 -9 ------------- Run | Yrd Mat Min Mat Min Turns Passed 2969 | 99 826 143 1844 57 Spaces Moved 2165 | 72 716 117 1232 28 Core 6 | 6 . . . . Treads 37 | . . . 37 . Legs . | . . . . . Wheels 2122 | 66 716 117 1195 28 Hover . | . . . . . Flight . | . . . . . Fastest Speed 50 | 50 80 95 80 100 Average Speed 94 | 77 93 95 96 107 Slowest Speed 240 | 80 110 95 240 130 Overloaded Moves . | . . . . . Propulsion Burnouts . | . . . . . Robots Hopped . | . . . . . Cave-ins Triggered . | . . . . . Exploration Rate (%) 41 | 3 83 34 77 12 Regions Visited 4 Branch Regions 2 Pre-discovered Areas . | . . . . . Known Exits Taken . | . . . . . Unknown Exits Taken 4 | 1 1 1 1 . Scrap Searched 1 | . . 1 . . Spaces Dug 1 | . . . 1 . Terrain Destroyed 23 | . 6 . 17 . Melee 1 | . . . 1 . Projectile . | . . . . . AOE 22 | . 6 . 16 . Terrain Rammed . | . . . . . Walls Destroyed . | . . . . . Machines Disabled . | . . . . . Actions | -11 -10 -10 -9 -9 --------- Run | Yrd Mat Min Mat Min Total 2697 | 93 807 149 1605 43 Wait 133 | . 16 30 82 5 Move 2161 | 71 715 116 1231 28 Hop . | . . . . . Pick Up 57 | 4 15 2 36 . Fast Attach 28 | 4 4 . 20 . Attach 20 | 2 1 . 13 4 Detach 8 | . 3 . 5 . Swap 17 | . 4 . 13 . Drop 50 | . 7 1 42 . Fire 220 | 12 42 . 160 6 Melee 2 | . . . 2 . Ram 1 | . . . 1 . Kick . | . . . . . Crush . | . . . . . Escape Stasis . | . . . . . Rewire . | . . . . . Trap . | . . . . . Miscellaneous . | . . . . . Route ------- -11/Scrapyard -10/Materials (discovered 5 exits: *Mat x3 / [*Min x2]) -10/Mines -9/Materials (discovered 3 exits: *Mat x2 / [*Min]) -9/Mines History --------- Turn | Location | Event 19 | -11/Scrapyard | Discovered new exit (range 15) 100 | -11/Scrapyard | Entered Materials 302 | -10/Materials | Build established: Mutant 324 | -10/Materials | Discovered new exit (range 11) 334 | -10/Materials | Discovered new exit (range 4) 364 | -10/Materials | Discovered new exit (range 15) 430 | -10/Materials | Discovered new exit (range 16) 482 | -10/Materials | Discovered new exit (range 15) 926 | -10/Materials | Entered Mines 933 | -10/Mines | Received a Rocket Launcher from a helpful Derelict 1005 | -10/Mines | Learned location of 1 exit from Materials 1045 | -10/Mines | Discovered new exit (range 16) 1069 | -10/Mines | Entered Materials 1069 | -9/Materials | Evolved 2 slots: Propulsion x1, Utility x1 1070 | -9/Materials | Identified exit to Materials 1240 | -9/Materials | Core integrity fell below 50% 1249 | -9/Materials | Destroyed 7 combat bots 1261 | -9/Materials | Lost 8 parts (2p5n1u) 1519 | -9/Materials | Destroyed 7 combat bots 1576 | -9/Materials | Build established: Scavenger-Mutant 1717 | -9/Materials | Discovered exit to Materials (range 16) 2149 | -9/Materials | Lost 7 parts (1p2n2u2w) 2410 | -9/Materials | Build established: Mutant 2692 | -9/Materials | Discovered new exit (range 13) 2913 | -9/Materials | Entered Mines 2929 | -9/Mines | Assembled infested the area 2934 | -9/Mines | Assisted by a Guerilla fighting off Assembled 2949 | -9/Mines | Core integrity fell below 20% 2957 | -9/Mines | System corruption reached 10% 2970 | -9/Mines | Destroyed by D-53 Grenadier with Mini Grenade Launcher Last Messages --------------- Nuclear Core destroyed. Lgt. Armor Plating destroyed. as-59267 destroyed. Wheel destroyed. The unstable cave ceiling collapses. System corrupted: Heat flow error (+241). Knocked back. R-06 Scavenger collects Lgt. Ion Engine. Com. Wheel destroyed. System corrupted by crushing effect (+4). Knocked back. The unstable cave ceiling collapses. as-80528 destroyed. as-85891 destroyed. as-64124 destroyed. The unstable cave ceiling collapses. Arm. Wheel destroyed. Power Shielding destroyed. The unstable cave ceiling collapses. Imp. Medium Laser destroyed. Map ----- +----------------------------------------------------+ | ?????????????????????????????????????????????????? | | ?????????????????????????????????????????????????? | | ?????????????????????????????????????????????????? | | ?????????????????????????????????????????????????? | | ?????????????????????????????????????????????????? | | ?????????????????????????????????????????????????? | | ?????????????????????????????????????????????????? | | ?????????????????????????????????????????????????? | | ?????????????????????????????????????????????????? | | ?????????????????????????????????????????????????? | | ??????????????????????????????????? ????????????? | | ?????????????????????##???????????? ????????????? | | ?????????????????? ???????????# ????????????? | | ????????????????? ????????### ????????????? | | ????????????????? ??????## ????????????? | | ?????????????????? ??????# ?????????????? | | ??????????????????? ??????# ??#######?????# | | ???????????????????# ?????## =*### # # ##### " | | ???????????????????? #????# |% # # # | | ????????????????????# ??### = # | | ????????????????????# ?## r ##??? | | ????????????????????# # =dd ##?? | | ?????????????????????# ##? | | ????????????????????## # #? | | ????????????????????# #? | | ?????????????????????# @ # # | ! ##? | | ????????????????????# ####### !###?? | | ????????????????????# #?????#####???? | | ????????????????????### #?????????????? | | ????????????????????? # ###?????????????? | | ???????????????????? #########???????????????? | | ??????????????????? #####????????????????????????? | | ?????????????????? ??????????????????????????????? | | ?????????????????#???????????????????????????????? | | ?????????????????????????????????????????????????? | | ?????????????????????????????????????????????????? | | ?????????????????????????????????????????????????? | | ?????????????????????????????????????????????????? | | ?????????????????????????????????????????????????? | | ?????????????????????????????????????????????????? | | ?????????????????????????????????????????????????? | | ?????????????????????????????????????????????????? | | ?????????????????????????????????????????????????? | | ?????????????????????????????????????????????????? | | ?????????????????????????????????????????????????? | | ?????????????????????????????????????????????????? | | ?????????????????????????????????????????????????? | | ?????????????????????????????????????????????????? | | ?????????????????????????????????????????????????? | | ?????????????????????????????????????????????????? | +----------------------------------------------------+ Best States ------------- Heat Dissipation 42 Energy Generation 14 Energy Capacity 250 Matter Stores 300 Matter Capacity 300 Sight Range 16 Terrain Scan Density 10 Armor Coverage 375 Power Shielding 33 Weapon Shielding 33 Evasion (%) 44 Recoil Reduction 3 Item Schematics ----------------- None Robot Schematics ------------------ None Fabricated ------------ Nothing Alien Tech Used ----------------- None Achievements -------------- None Challenges ------------ None Game ------ Seed WeaponsMatterCapacitor Manual? 0 Play Time 00:36:46 Cumulative 22.0 hours Start 2024.08.13 @ 00:40:15 End 2024.08.13 @ 01:15:43 Sessions 1 Manual Loads 0 Difficulty Rogue Special Mode None Game No. 24 Rogue 24 Adventurer 0 Explorer 0 Win Type - Total 0 Types 0/0/0/0/0/0/0/0/0 Lore% 5 Gallery% 22 Achievement% 19 Wizard Run 0 Options --------- Layout 1 ASCII 0 Keyboard 1 Movement Vi Keybinds 0 Fullscreen 1 Font 32/SmallcapsGlow Map View 77x35 Zoom Use 0% Tactical HUD 0 Map Filters NONE Filters NONE Steam 1 RUN: 5ee778d7-366a-4dfa-a4ab-762c69fa5aa9